fUST/lending_fUST_20240901
["ID","MTS","AMOUNT","RATE_DAILY","PERIOD"]
[336769794,1725127851217,-500.0,0.0003315,31]
[336769795,1725127851226,-858.39,0.0003315,31]
[336769796,1725127851236,-345.11,0.0003315,31]
[336769797,1725127851247,-500.0,0.0003315,31]
[336769798,1725127851256,-542.39,0.0003315,31]
[336769799,1725127851265,-714.99561076,0.0003315,31]
[336769800,1725127851283,-1284.07438924,0.0003315,31]
[336769801,1725127851295,-500.0,0.0003315,31]
[336769802,1725127851304,-1006.19,0.0003315,31]
[336769803,1725127851313,-23.02843421,0.0003315,31]
[336769804,1725127851546,-306.0,0.00032356,2]
[336769805,1725127851556,-668.25156579,0.0003315,31]
[336769806,1725127851565,-500.0,0.0003315,31]
[336769807,1725127851574,-817.7715407,0.0003315,31]
[336769814,1725128397594,157.870183,0.00014247,2]
[336769819,1725128832125,-1774.2844075,0.00028477,2]
[336769820,1725128832149,-1509.4252531,0.00028558,2]
[336769824,1725128898876,158.377274,0.00014247,2]
[336769828,1725128921865,15162.14480968,0.00014,2]
[336769829,1725128954308,-300.0,0.00025499,2]
[336769830,1725128954333,-300.0,0.00025499,2]
[336769831,1725128954354,-500.0,0.000255,2]
[336769832,1725128954375,-500.0,0.000255,2]
[336769833,1725128954396,-500.0,0.000255,2]
[336769834,1725128954417,-500.0,0.000255,2]
[336769835,1725128954437,-500.0,0.000255,2]
[336769836,1725128954458,-500.0,0.000255,2]
[336769837,1725128954478,-500.0,0.000255,2]
[336769838,1725128954498,-500.0,0.000255,2]
[336769839,1725128954519,-500.0,0.000255,2]
[336769840,1725128954538,-500.0,0.000255,2]
[336769841,1725128954558,-227.23377846,0.000255,2]
[336769842,1725128956191,-272.76622154,0.000255,2]
[336769843,1725128956218,-500.0,0.000255,2]
[336769844,1725128956242,-500.0,0.000255,2]
[336769845,1725128956265,-500.0,0.000255,2]
[336769846,1725128956287,-402.03378319,0.000255,2]
[336769847,1725128956310,-300.0,0.0002761,2]
[336769848,1725128956333,-420.0,0.00028049,2]
[336769849,1725128956355,-451.2325419,0.00028454,2]
[336769850,1725128956377,-807.5972122,0.00028558,2]
[336769851,1725128956400,-250.0,0.00028594,2]
[336769852,1725128956423,-241.4688,0.00028834,2]
[336769853,1725128956447,-241.4688,0.00028913,2]
[336769854,1725128956470,-241.4688,0.00028992,2]
[336769855,1725128956493,-241.4688,0.00029071,2]
[336769856,1725128956517,-241.4688,0.0002915,2]
[336769857,1725128956542,-241.4688,0.00029229,2]
[336769858,1725128956566,-241.4688,0.00029308,2]
[336769859,1725128956589,-241.4688,0.00029387,2]
[336769860,1725128956612,-241.4688,0.00029466,2]
[336769861,1725128956635,-241.4688,0.00029545,2]
[336769862,1725129000679,160.9792,0.00029151,2]
[336769863,1725129000880,160.9792,0.00029259,2]
[336769864,1725129001109,160.9792,0.00029368,2]
[336769865,1725129001316,160.9792,0.00029476,2]
[336769866,1725129001533,160.9792,0.00029585,2]
[336769896,1725129031737,-160.9792,0.00029693,2]
[336769898,1725129031747,-1434.43885496,0.000298,3]
[336769900,1725129031757,-160.9792,0.00029801,2]
[336769902,1725129031767,-160.9792,0.0002991,2]
[336769904,1725129031777,-160.9792,0.00030018,2]
[336769906,1725129031787,-160.9792,0.00030127,2]
[336769908,1725129031798,-160.9792,0.00030235,2]
[336769909,1725129031807,-160.9792,0.00030344,2]
[336769911,1725129031817,-160.9792,0.00030452,2]
[336769913,1725129031827,-2314.08990234,0.00030511,2]
[336769915,1725129031837,-160.9792,0.00030561,2]
[336769918,1725129031847,-160.9792,0.00030669,2]
[336769921,1725129031857,-400.0,0.00030722,2]
[336769922,1725129031867,-24890.0,0.00030723,2]
[336769924,1725129031877,-160.351755,0.0003075,2]
[336769926,1725129031890,-166.420704,0.0003075,2]
[336769928,1725129031900,-160.351755,0.00031262,2]
[336769930,1725129031910,-500.0,0.00031473,7]
[336769932,1725129031919,-166.420704,0.00031519,2]
[336769934,1725129031930,-500.0,0.00031524,7]
[336769936,1725129031939,-500.0,0.00031546,7]
[336769937,1725129031949,-868.22752138,0.00031579,2]
[336769939,1725129031960,-160.351755,0.00031775,2]
[336769941,1725129031969,-266.617022,0.00031781,2]
[336769943,1725129031979,-500.0,0.00031819,7]
[336769945,1725129031989,-868.22752138,0.00032043,2]
[336769947,1725129031998,-153.0,0.00032078,2]
[336769949,1725129032008,-207.8243323,0.00032078,2]
[336769951,1725129032029,-160.47687759,0.00032234,2]
[336769953,1725129032039,-160.351755,0.00032287,2]
[336769955,1725129032050,-166.420704,0.00032287,2]
[336769957,1725129032060,-500.0,0.00032405,7]
[336769959,1725129032070,-500.0,0.00032406,7]
[336769961,1725129032080,-868.22752138,0.00032507,2]
[336769963,1725129032092,-232.60348847,0.00032746,2]
[336769965,1725129032102,-232.60348847,0.00032754,2]
[336769967,1725129032112,-232.60348847,0.00032761,2]
[336769969,1725129032122,-232.60348847,0.00032769,2]
[336769971,1725129032132,-7478.59264874,0.00032776,5]
[336769972,1725129032142,-232.60348847,0.00032776,2]
[336769974,1725129032152,-497.91423803,0.00032866,4]
[336769976,1725129032167,-2959.71302028,0.00032866,4]
[336769982,1725129038054,-923.91373066,0.00032866,4]
[336770016,1725129040023,-158.63686392,0.00032866,4]
[336770017,1725129040034,-1205.16343094,0.00032866,4]
[336770019,1725129040048,-11060.47987231,0.00032866,4]
[336770020,1725129040060,-787.8138175,0.00032866,4]
[336770033,1725129042925,-18727.78784945,0.00032866,4]
[336770034,1725129042942,-939.27,0.00032866,3]
[336770035,1725129042959,-970.58,0.00032866,3]
[336770036,1725129042974,-178.30526991,0.00032875,2]
[336770037,1725129042989,-500.0,0.00032875,2]
[336770038,1725129043003,-500.0,0.00032875,2]
[336770039,1725129043017,-500.0,0.00032875,2]
[336770040,1725129043035,-185.74371738,0.00032875,2]
[336770041,1725129043051,-289.58765765,0.00032875,2]
[336770042,1725129043063,-265.35251781,0.00032875,2]
[336770043,1725129043077,-307.18300307,0.00032875,2]
[336770045,1725129043091,-8307.94175661,0.00032876,15]
[336770048,1725129043110,-452.112233,0.00032876,15]
[336770050,1725129043127,-3422.44189555,0.00032876,15]
[336770051,1725129043143,-500.0,0.00032876,31]
[336770052,1725129043159,-500.0,0.00032876,31]
[336770053,1725129043170,-500.0,0.00032876,31]
[336770054,1725129043181,-500.0,0.00032876,31]
[336770055,1725129043194,-500.0,0.00032876,31]
[336770056,1725129043210,-500.0,0.00032876,31]
[336770057,1725129043221,-500.0,0.00032876,31]
[336770058,1725129043235,-583.72,0.00032876,31]
[336770059,1725129043249,-500.0,0.00032876,31]
[336770060,1725129043260,-500.0,0.00032876,31]
[336770061,1725129043272,-671.39,0.00032876,31]
[336770062,1725129043286,-500.0,0.00032876,31]
[336770063,1725129043298,-500.0,0.00032876,31]
[336770064,1725129043311,-500.0,0.00032876,31]
[336770065,1725129043325,-502.20969458,0.00032876,31]
[336770066,1725129043338,-185.05025515,0.00032876,31]
[336770067,1725129043354,-500.0,0.00032876,31]
[336770068,1725129043367,-277.44618634,0.00032876,31]
[336770069,1725129043380,-500.0,0.00032876,31]
[336770070,1725129043392,-500.0,0.00032876,31]
[336770071,1725129043404,-500.0,0.00032876,31]
[336770072,1725129043417,-397.27270631,0.00032876,31]
[336770073,1725129043430,-500.0,0.00032876,15]
[336770074,1725129043442,-658.04,0.00032876,31]
[336770075,1725129043456,-500.0,0.00032876,31]
[336770076,1725129043468,-500.0,0.00032876,31]
[336770077,1725129043480,-500.0,0.00032876,31]
[336770078,1725129043492,-500.0,0.00032876,31]
[336770079,1725129043505,-500.0,0.00032876,31]
[336770080,1725129043520,-500.0,0.00032876,31]
[336770081,1725129043534,-500.0,0.00032876,31]
[336770082,1725129043547,-500.0,0.00032876,31]
[336770083,1725129043560,-500.0,0.00032876,31]
[336770084,1725129043572,-637.96953958,0.00032876,31]
[336770085,1725129043584,-500.0,0.00032876,31]
[336770086,1725129043600,-500.0,0.00032876,31]
[336770087,1725129043615,-500.0,0.00032876,31]
[336770088,1725129043627,-500.0,0.00032876,7]
[336770089,1725129043638,-500.0,0.00032876,31]
[336770090,1725129043650,-500.0,0.00032876,31]
[336770091,1725129043662,-500.0,0.00032876,31]
[336770092,1725129043674,-862.09,0.00032876,31]
[336770093,1725129043688,-500.0,0.00032876,31]
[336770094,1725129043701,-503.95445603,0.00032876,31]
[336770095,1725129043713,-500.0,0.00032876,31]
[336770096,1725129043726,-500.0,0.00032876,31]
[336770097,1725129043738,-500.0,0.00032876,31]
[336770098,1725129043752,-500.0,0.00032876,31]
[336770099,1725129043764,-500.0,0.00032876,31]
[336770100,1725129043776,-500.0,0.00032876,31]
[336770101,1725129043789,-500.0,0.00032876,31]
[336770102,1725129043801,-500.0,0.00032876,31]
[336770103,1725129043816,-500.0,0.00032876,31]
[336770104,1725129043829,-500.0,0.00032876,31]
[336770105,1725129043842,-500.0,0.00032876,31]
[336770106,1725129043857,-500.0,0.00032876,31]
[336770107,1725129043870,-500.0,0.00032876,31]
[336770108,1725129043884,-500.0,0.00032876,31]
[336770109,1725129043897,-500.0,0.00032876,31]
[336770110,1725129043906,-500.0,0.00032876,31]
[336770111,1725129043916,-500.0,0.00032876,31]
[336770112,1725129043926,-508.48636531,0.00032876,31]
[336770113,1725129043937,-500.0,0.00032876,31]
[336770114,1725129043946,-718.37,0.00032876,31]
[336770115,1725129043956,-500.0,0.00032876,31]
[336770116,1725129044128,-200.0,0.00032876,7]
[336770117,1725129044151,-500.0,0.00032876,31]
[336770118,1725129044161,-541.82405022,0.00032876,31]
[336770119,1725129044170,-858.16,0.00032876,31]
[336770120,1725129044179,-500.0,0.00032876,31]
[336770121,1725129044188,-885.58,0.00032876,31]
[336770122,1725129044197,-1555.78,0.00032876,31]
[336770123,1725129044206,-500.0,0.00032876,31]
[336770124,1725129044215,-500.0,0.00032876,31]
[336770125,1725129044225,-770.01,0.00032876,14]
[336770126,1725129044234,-1044.7,0.00032876,31]
[336770127,1725129044244,-500.0,0.00032876,31]
[336770128,1725129044253,-500.0,0.00032876,31]
[336770129,1725129044262,-500.0,0.00032876,31]
[336770130,1725129044271,-500.0,0.00032876,31]
[336770131,1725129044280,-500.0,0.00032876,31]
[336770132,1725129044289,-500.0,0.00032876,31]
[336770133,1725129044298,-849.4,0.00032876,31]
[336770134,1725129044307,-500.0,0.00032876,31]
[336770135,1725129044317,-718.94,0.00032876,7]
[336770136,1725129044326,-500.0,0.00032876,31]
[336770137,1725129044336,-632.37,0.00032876,31]
[336770138,1725129044347,-500.0,0.00032876,31]
[336770139,1725129044356,-500.0,0.00032876,31]
[336770141,1725129044367,-813.59,0.00032876,30]
[336770143,1725129044378,-500.0,0.00032876,31]
[336770144,1725129044390,-500.0,0.00032876,31]
[336770145,1725129044401,-500.0,0.00032876,31]
[336770146,1725129044411,-500.0,0.00032876,31]
[336770147,1725129044420,-500.0,0.00032876,31]
[336770148,1725129044432,-1374.38,0.00032876,31]
[336770149,1725129044442,-500.0,0.00032876,31]
[336770150,1725129044451,-500.0,0.00032876,31]
[336770151,1725129044460,-500.0,0.00032876,31]
[336770152,1725129044470,-500.0,0.00032876,31]
[336770153,1725129044480,-506.95,0.00032876,31]
[336770154,1725129044489,-500.0,0.00032876,31]
[336770155,1725129044498,-619.81,0.00032876,31]
[336770156,1725129044508,-500.0,0.00032876,31]
[336770157,1725129044518,-477.81897494,0.00032876,31]
[336770158,1725129044527,-510.30920491,0.00032876,31]
[336770159,1725129044536,-500.0,0.00032876,31]
[336770160,1725129044546,-922.39,0.00032876,31]
[336770161,1725129044555,-500.0,0.00032876,31]
[336770162,1725129044564,-500.0,0.00032876,31]
[336770163,1725129044574,-500.0,0.00032876,31]
[336770164,1725129044583,-500.0,0.00032876,31]
[336770165,1725129044593,-678.79,0.00032876,31]
[336770166,1725129044602,-810.24,0.00032876,31]
[336770167,1725129044612,-821.34,0.00032876,31]
[336770168,1725129044622,-935.31,0.00032876,31]
[336770169,1725129044633,-500.0,0.00032876,31]
[336770170,1725129044645,-500.0,0.00032876,31]
[336770171,1725129044655,-646.03622276,0.00032876,31]
[336770172,1725129044666,-500.0,0.00032876,31]
[336770173,1725129044676,-500.0,0.00032876,31]
[336770174,1725129044687,-702.99,0.00032876,31]
[336770175,1725129044696,-500.0,0.00032876,31]
[336770176,1725129044706,-500.0,0.00032876,31]
[336770177,1725129044718,-912.69,0.00032876,31]
[336770178,1725129044729,-500.0,0.00032876,31]
[336770179,1725129044740,-261.90462176,0.00032876,31]
[336770183,1725129045931,-601.7,0.00032866,3]
[336770187,1725129369613,-162.0,0.00025,2]
[336770188,1725129369641,-159.565501,0.0003075,2]
[336770189,1725129369667,-174.136508,0.0003075,2]
[336770190,1725129369691,-400.0,0.00030883,2]
[336770191,1725129369716,-24900.0,0.00030884,2]
[336770192,1725129405111,157.870183,0.00014247,2]
[336770198,1725129528658,-1747.1339996,0.00030967,2]
[336770199,1725129528682,-600.0,0.00031255,65]
[336770200,1725129528707,-159.565501,0.00031262,2]
[336770201,1725129528927,-174.136508,0.00031262,2]
[336770202,1725129528953,-500.0,0.00031425,7]
[336770203,1725129528977,-500.0,0.00031527,7]
[336770204,1725129528999,-500.0,0.00031576,7]
[336770205,1725129529025,-159.565501,0.00031775,2]
[336770206,1725129529048,-174.136508,0.00031775,2]
[336770207,1725129529071,-253.28617,0.00031781,2]
[336770208,1725129529096,-502.90735602,0.00031807,7]
[336770209,1725129529123,-500.0,0.00031905,7]
[336770210,1725129529145,-500.67441869,0.00031926,7]
[336770211,1725129529167,-1000.0,0.00032,32]
[336770214,1725130038150,-157.409004,0.00031058,2]
[336770215,1725130038173,-174.9797707,0.00031173,2]
[336770216,1725130038196,-64.55543393,0.00031598,2]
[336770217,1725130041153,-92.85357007,0.00031598,2]
[336770218,1725130041176,-240.621861,0.00031781,2]
[336770219,1725130041200,-157.409004,0.00032137,2]
[336770220,1725130041224,-157.26734004,0.00032143,2]
[336770221,1725130041248,-159.565501,0.00032287,2]
[336770222,1725130041272,-174.136508,0.00032287,2]
[336770223,1725130041301,-400.0,0.00032416,2]
[336770224,1725130041324,-1316.942799,0.00032417,2]
[336770225,1725130060967,162.820778,0.00014247,2]
[336770227,1725130145094,-162.820778,0.00025405,2]
[336770236,1725130206656,825.8464902,0.00023501,2]
[336770237,1725130207743,483.04232451,0.00024676,2]
[336770259,1725130231903,-420.7398886,0.00031681,2]
[336770260,1725130231912,-500.0,0.00031706,7]
[336770261,1725130231921,-228.590767,0.00031781,2]
[336770262,1725130231930,-500.0,0.0003217,7]
[336770263,1725130231940,-500.0,0.00032352,7]
[336770264,1725130231951,-500.0,0.00032358,7]
[336770268,1725130231970,-157.409004,0.00032677,2]
[336770272,1725130231982,-400.0,0.00032765,2]
[336770275,1725130231992,-2724.10671173,0.00032766,4]
[336770278,1725130232001,-29.15362867,0.00032776,15]
[336770323,1725130240204,-2509.1640066,0.00032766,3]
[336770324,1725130240217,-1640.4959934,0.00032766,3]
[336770325,1725130240228,-4263.8040066,0.00032776,15]
[336770331,1725130243026,-1798.29030731,0.00032776,15]
[336770332,1725130243037,-38979.87913259,0.00032776,5]
[336770350,1725130245951,-597.17,0.00032737,2]
[336770362,1725130246151,-118.92313834,0.00032737,2]
[336770363,1725130246164,-1345.18514592,0.00032737,2]
[336770364,1725130246173,-16308.62390415,0.00032776,5]
[336770365,1725130246189,-411.11179919,0.00032776,5]
[336770366,1725130707798,162.42318,0.00014247,2]
[336770368,1725130752018,852.6,0.0002001,2]
[336770372,1725131230152,-162.42318,0.00026521,2]
[336770373,1725131230174,-151.0,0.0003,120]
[336770374,1725131230195,-250.0,0.00030094,2]
[336770375,1725131230218,-642.1391782,0.00030282,2]
[336770376,1725131230240,-4141.3471294,0.00030719,2]
[336770377,1725131230262,-400.0,0.00030748,2]
[336770378,1725131230284,-300.0,0.00030749,2]
[336770379,1725131230305,-278.193653,0.0003075,2]
[336770380,1725131230326,-265.548574,0.0003075,2]
[336770381,1725131230348,-265.548572,0.0003075,2]
[336770382,1725131230368,-278.193654,0.0003075,2]
[336770383,1725131230388,-4274.58508958,0.00031083,2]
[336770384,1725131230410,-220.34813,0.00031083,2]
[336770385,1725131230432,-220.34813,0.00031168,2]
[336770386,1725131230454,-220.34813,0.00031253,2]
[336770387,1725131230476,-220.34813,0.00031339,2]
[336770388,1725131230498,-220.34813,0.00031424,2]
[336770389,1725131230519,-1091.52886471,0.00031492,70]
[336770390,1725131230542,-220.34813,0.00031509,2]
[336770391,1725131230564,-220.34813,0.00031594,2]
[336770392,1725131230586,-500.0,0.00031601,7]
[336770393,1725131230609,-500.0,0.00031606,7]
[336770394,1725131230630,-151.0,0.00031671,120]
[336770395,1725131230652,-220.34813,0.0003168,2]
[336770396,1725131230673,-220.34813,0.00031765,2]
[336770397,1725131230696,-217.161228,0.00031781,2]
[336770398,1725131230718,-220.34813,0.0003185,2]
[336770399,1725131230739,-4241.95275707,0.00031868,2]
[336770400,1725131230762,-500.0,0.00031919,7]
[336770401,1725131230793,-220.34813,0.00031935,2]
[336770402,1725131230816,-220.34813,0.00032021,2]
[336770403,1725131230838,-207.8914059,0.00032055,2]
[336770404,1725131230859,-153.0,0.00032055,2]
[336770405,1725131230881,-153.0,0.00032055,2]
[336770406,1725131230902,-207.8914059,0.00032055,2]
[336770407,1725131230924,-153.0,0.00032055,2]
[336770408,1725131230949,-207.8914059,0.00032055,2]
[336770409,1725131230970,-153.0,0.00032055,2]
[336770410,1725131230992,-207.8914059,0.00032055,2]
[336770411,1725131231019,-207.8914059,0.00032055,2]
[336770412,1725131231040,-153.0,0.00032055,2]
[336770413,1725131231060,-207.8914059,0.00032055,2]
[336770414,1725131231081,-207.8914059,0.00032055,2]
[336770415,1725131231106,-207.8914059,0.00032055,2]
[336770416,1725131231128,-207.8914059,0.00032055,2]
[336770417,1725131231149,-207.8914059,0.00032055,2]
[336770418,1725131231172,-204.9294743,0.00032055,2]
[336770419,1725131231194,-4241.95275707,0.00032105,2]
[336770420,1725131231217,-220.34813,0.00032106,2]
[336770421,1725131231238,-154.12199324,0.00032143,2]
[336770422,1725131231259,-220.34813,0.00032191,2]
[336770423,1725131231283,-220.34813,0.00032276,2]
[336770424,1725131231303,-207.8914059,0.00032329,2]
[336770425,1725131231326,-153.0,0.00032329,2]
[336770426,1725131231350,-207.8914059,0.00032329,2]
[336770427,1725131231371,-4241.95275709,0.00032344,2]
[336770428,1725131231394,-220.34813,0.00032362,2]
[336770429,1725131231417,-220.34813,0.00032447,2]
[336770430,1725131231441,-500.0,0.00032532,7]
[336770431,1725131231463,-220.34813,0.00032532,2]
[336770432,1725131231484,-307.7503254,0.00032536,2]
[336770433,1725131231508,-220.34813,0.00032617,2]
[336770434,1725131231531,-1687.40558601,0.00032684,2]
[336770435,1725131231554,-220.34813,0.00032703,2]
[336770436,1725131231577,-1687.405586,0.00032707,2]
[336770437,1725131231598,-1687.405586,0.0003273,2]
[336770438,1725131231620,-1687.405586,0.00032753,2]
[336770439,1725131231643,-33188.38516407,0.00032776,5]
[336770440,1725131231665,-1687.405586,0.00032776,2]
[336770441,1725131231687,-8314.30172181,0.00032845,15]
[336770442,1725131231710,-5323.39814831,0.00032846,4]
[336770443,1725131231734,-2001.19,0.00032846,3]
[336770444,1725131231757,-2401.43,0.00032855,3]
[336770445,1725131231779,-3458.05,0.00032856,3]
[336770446,1725131231801,-2881.71,0.00032856,3]
[336770447,1725131231826,-3944.76912494,0.00032865,15]
[336770448,1725131231849,-22603.129047,0.00032866,4]
[336770449,1725131234167,-19984.0561395,0.00032866,4]
[336770450,1725131234189,-265.70400243,0.00032875,2]
[336770451,1725131234209,-151.0,0.00032876,7]
[336770452,1725131234230,-151.0,0.00032876,7]
[336770453,1725131234250,-151.0,0.00032876,7]
[336770454,1725131234272,-500.0,0.00032876,31]
[336770455,1725131234298,-500.0,0.00032876,31]
[336770456,1725131234319,-500.0,0.00032876,31]
[336770457,1725131234339,-500.0,0.00032876,31]
[336770458,1725131234361,-500.0,0.00032876,31]
[336770459,1725131234383,-500.0,0.00032876,31]
[336770460,1725131234405,-500.0,0.00032876,31]
[336770461,1725131234427,-500.0,0.00032876,31]
[336770462,1725131234451,-646.03622276,0.00032876,31]
[336770463,1725131234474,-500.0,0.00032876,31]
[336770464,1725131234498,-500.0,0.00032876,31]
[336770465,1725131234523,-500.0,0.00032876,31]
[336770466,1725131234546,-821.34,0.00032876,31]
[336770467,1725131234570,-500.0,0.00032876,31]
[336770468,1725131234592,-500.0,0.00032876,31]
[336770469,1725131234613,-406.49491338,0.00032876,31]
[336770470,1725131234634,-500.0,0.00032876,31]
[336770471,1725131234655,-500.0,0.00032876,31]
[336770472,1725131234676,-500.0,0.00032876,31]
[336770473,1725131234696,-270.14163821,0.00032876,31]
[336770474,1725131234717,-500.0,0.00032876,31]
[336770475,1725131234740,-151.0,0.00032876,7]
[336770476,1725131234763,-500.0,0.00032876,31]
[336770477,1725131234786,-613.41737942,0.00032876,31]
[336770478,1725131234807,-500.0,0.00032876,31]
[336770479,1725131234831,-500.0,0.00032876,31]
[336770480,1725131234853,-500.0,0.00032876,31]
[336770481,1725131234876,-500.0,0.00032876,31]
[336770482,1725131234897,-151.0,0.00032876,7]
[336770483,1725131234918,-500.0,0.00032876,31]
[336770484,1725131234942,-500.0,0.00032876,31]
[336770485,1725131234963,-506.12913711,0.00032876,31]
[336770486,1725131234985,-500.0,0.00032876,31]
[336770487,1725131235006,-500.0,0.00032876,31]
[336770488,1725131235033,-615.03,0.00032876,31]
[336770489,1725131235055,-152.273631,0.00032876,7]
[336770490,1725131235079,-152.273631,0.00032876,7]
[336770491,1725131235099,-500.0,0.00032876,31]
[336770492,1725131235120,-500.0,0.00032876,31]
[336770493,1725131235140,-666.51,0.00032876,31]
[336770494,1725131235163,-152.273631,0.00032876,7]
[336770495,1725131235185,-152.273631,0.00032876,7]
[336770496,1725131235207,-152.273631,0.00032876,7]
[336770497,1725131235231,-152.273631,0.00032876,7]
[336770498,1725131235254,-1815.43,0.00032876,31]
[336770499,1725131235277,-152.273631,0.00032876,7]
[336770500,1725131235301,-500.0,0.00032876,31]
[336770501,1725131235322,-500.0,0.00032876,31]
[336770502,1725131235344,-500.0,0.00032876,31]
[336770503,1725131235366,-500.0,0.00032876,31]
[336770504,1725131235389,-500.0,0.00032876,31]
[336770505,1725131235412,-500.0,0.00032876,31]
[336770506,1725131235433,-570.86,0.00032876,31]
[336770507,1725131235457,-500.0,0.00032876,31]
[336770508,1725131235478,-1815.45,0.00032876,31]
[336770509,1725131235499,-500.0,0.00032876,31]
[336770510,1725131235520,-500.0,0.00032876,31]
[336770511,1725131235541,-500.0,0.00032876,31]
[336770512,1725131235562,-1005.949984,0.00032876,7]
[336770513,1725131235584,-1005.949984,0.00032876,7]
[336770514,1725131235605,-1005.949984,0.00032876,7]
[336770515,1725131235626,-1005.949984,0.00032876,7]
[336770516,1725131235648,-1005.949984,0.00032876,7]
[336770517,1725131235793,-1005.949984,0.00032876,7]
[336770518,1725131235816,-1005.949984,0.00032876,7]
[336770519,1725131235840,-1005.949984,0.00032876,7]
[336770520,1725131235862,-1005.949984,0.00032876,7]
[336770521,1725131235883,-1005.949984,0.00032876,7]
[336770522,1725131235908,-500.0,0.00032876,31]
[336770523,1725131235928,-151.0,0.00032876,7]
[336770524,1725131235954,-151.0,0.00032876,7]
[336770525,1725131235976,-500.0,0.00032876,31]
[336770526,1725131235999,-500.0,0.00032876,31]
[336770527,1725131236026,-500.0,0.00032876,31]
[336770528,1725131236048,-500.0,0.00032876,31]
[336770529,1725131236070,-500.0,0.00032876,31]
[336770530,1725131236094,-500.0,0.00032876,31]
[336770531,1725131236118,-500.0,0.00032876,31]
[336770532,1725131236142,-500.0,0.00032876,31]
[336770533,1725131236165,-675.89,0.00032876,31]
[336770534,1725131236188,-1496.03,0.00032876,31]
[336770535,1725131236211,-667.36,0.00032876,31]
[336770536,1725131236235,-500.0,0.00032876,31]
[336770537,1725131236258,-500.0,0.00032876,31]
[336770538,1725131236282,-1052.18,0.00032876,31]
[336770539,1725131236305,-500.0,0.00032876,31]
[336770540,1725131236325,-500.0,0.00032876,31]
[336770541,1725131236346,-1069.06,0.00032876,31]
[336770542,1725131236367,-547.49,0.00032876,31]
[336770543,1725131236387,-500.0,0.00032876,31]
[336770544,1725131236408,-1127.24,0.00032876,31]
[336770545,1725131236429,-1039.81,0.00032876,31]
[336770546,1725131236450,-151.0,0.00032876,7]
[336770547,1725131236471,-500.0,0.00032876,31]
[336770548,1725131236495,-500.0,0.00032876,31]
[336770549,1725131236516,-500.0,0.00032876,31]
[336770550,1725131236538,-581.3151416,0.00032876,31]
[336770551,1725131236560,-685.76,0.00032876,31]
[336770552,1725131236582,-500.0,0.00032876,31]
[336770553,1725131236603,-1763.83,0.00032876,31]
[336770554,1725131236624,-500.0,0.00032876,31]
[336770555,1725131236644,-512.4,0.00032876,31]
[336770556,1725131236665,-243.72255375,0.00032876,31]
[336770557,1725131236686,-173.751696,0.00032876,31]
[336770558,1725131236709,-500.0,0.00032876,31]
[336770559,1725131236730,-500.0,0.00032876,31]
[336770560,1725131236750,-500.0,0.00032876,31]
[336770561,1725131236771,-500.0,0.00032876,31]
[336770562,1725131236792,-283.5083474,0.00032876,31]
[336770563,1725131236813,-500.0,0.00032876,31]
[336770564,1725131236835,-500.0,0.00032876,31]
[336770565,1725131236858,-151.0,0.00032876,7]
[336770566,1725131236881,-151.0,0.00032876,7]
[336770567,1725131236909,-151.0,0.00032876,7]
[336770568,1725131236933,-500.0,0.00032876,31]